[Event "GER-ch Youth-U12 2024"]
[Site "Willingen"]
[Date "2024.05.24"]
[Round "8"]
[White "Wagener, Nicolas"]
[Black "Schulz, Robin"]
[Result "0-1"]
[ECO "B10"]
[WhiteElo "1713"]
[BlackElo "1730"]
[Annotator "NA RC"]
[PlyCount "80"]
[EventDate "2022.06.05"]
[EventType "swiss"]
[EventRounds "9"]
[EventCountry "GER"]
[SourceTitle "playchess.com"]
[Source "ChessBase"]
[SourceQuality "1"]
[TimeControl "40/4500+30:900+30"]

1. e4 {[%emt 0:00:00]} c6 {[%emt 0:00:00]} 2. Nf3 {[%emt 0:00:00]} d5 {[%emt 0:00:00]} 3. exd5 {[%emt 0:00:00]} cxd5 {[%emt 0:00:00]} 4. Ne5 {[%emt 0:00:00]} Nc6 {[%emt 0:00:00]} 5. Bb5 {[%emt 0:00:00]} Bd7 {[%emt 0:00:00]} 6. Nxd7 {[%emt 0:00:00]} Qxd7 {[%emt 0:00:00]} 7. d4 {[%emt 0:00:00]} a6 {[%emt 0:00:00]} 8. Bd3 {[%emt 0:00:00]} e6 {[%emt 0:00:00]} 9. c3 {[%emt 0:00:00]} Nf6 {[%emt 0:00:00]} 10. O-O {[%emt 0:00:00]} Be7 {[%emt 0:00:00]} 11. Nd2 {[%emt 0:00:00]} O-O {[%emt 0:00:00]} 12. Nf3 {[%emt 0:00:00]} h6 {[%emt 0:00:00]} 13. Re1 {[%emt 0:00:00]} Bd6 {[%emt 0:00:00]} 14. Ne5 {[%emt 0:00:00]} Qc7 {[%emt 0:00:00]} 15. Ng4 {[%emt 0:00:00]} Nxg4 {[%emt 0:00:00]} 16. Qxg4 {[%emt 0:00:00]} f5 {[%emt 0:00:00]} 17. Qh5 {[%emt 0:00:00]} Rf6 {[%emt 0:00:00]} 18. g3 {[%emt 0:00:00]} b5 {[%emt 0:00:00]} 19. Bd2 {[%emt 0:01:39]} Raf8 {[%emt 0:01:13]} 20. Re2 {[%emt 0:01:36]} f4 {[%emt 0:09:10]} 21. Rxe6 {[%emt 0:06:42]} Rxe6 {[%emt 0:01:46]} 22. Qxd5 {[%emt 0:00:11]} Qf7 {[%emt 0:01:09]} 23. Qxc6 {[%emt 0:02:34]} fxg3 {[%emt 0:00:07]} 24. fxg3 {[%emt 0:01:11]} Qf2+ {[%emt 0:00:47]} 25. Kh1 {[%emt 0:00:13]} Qxd2 {[%emt 0:01:09]} 26. Qd5 {[%emt 0:00:46]} Qe3 {[%emt 0:03:55]} 27. Bf5 {[%emt 0:00:58]} Rxf5 {[%emt 0:00:09]} 28. Qxf5 {[%emt 0:00:06]} Qe4+ {[%emt 0:00:16]} 29. Qxe4 {[%emt 0:00:05]} Rxe4 {[%emt 0:00:03]} 30. a4 {[%emt 0:01:14]} b4 {[%emt 0:00:08]} 31. Rf1 {[%emt 0:00:33]} Re2 {[%emt 0:00:27]} 32. c4 {[%emt 0:03:00]} Rxb2 {[%emt 0:01:02]} 33. c5 {[%emt 0:00:12]} Bxc5 {[%emt 0:07:45]} 34. dxc5 {[%emt 0:00:09]} Rc2 {[%emt 0:00:02]} 35. Rb1 {[%emt 0:00:24]} a5 {[%emt 0:00:07]} 36. Rd1 {[%emt 0:00:32]} b3 {[%emt 0:01:09]} 37. c6 {[%emt 0:08:14]} b2 {[%emt 0:00:21]} 38. c7 {[%emt 0:03:25]} Rxc7 {[%emt 0:00:10]} 39. Kg2 {[%emt 0:00:08]} Rc1 {[%emt 0:00:10]} 40. Rd8+ {[%emt 0:00:06]} Kh7 {[%emt 0:00:58]} 0-1

[Event "GER-ch Youth-U12 2024"]
[Site "Willingen"]
[Date "2024.05.24"]
[Round "8"]
[White "Sasikumar Anitha, Sarvesh"]
[Black "Stehning, Toni"]
[Result "0-1"]
[ECO "C47"]
[WhiteElo "1703"]
[BlackElo "1821"]
[Annotator "NA RC"]
[PlyCount "128"]
[EventDate "2022.06.05"]
[EventType "swiss"]
[EventRounds "9"]
[EventCountry "GER"]
[SourceTitle "playchess.com"]
[Source "ChessBase"]
[SourceQuality "1"]
[TimeControl "40/4500+30:900+30"]

1. e4 {[%emt 0:00:00]} e5 {[%emt 0:00:00]} 2. Nf3 {[%emt 0:00:00]} Nc6 {[%emt 0:00:00]} 3. d4 {[%emt 0:00:00]} exd4 {[%emt 0:00:00]} 4. Nxd4 {[%emt 0:00:00]} Nf6 {[%emt 0:00:00]} 5. Nxc6 {[%emt 0:00:00]} bxc6 {[%emt 0:00:00]} 6. Bd3 {[%emt 0:00:00]} Bc5 {[%emt 0:00:00]} 7. O-O {[%emt 0:00:00]} O-O {[%emt 0:00:00]} 8. Nc3 {[%emt 0:00:00]} d5 {[%emt 0:00:00]} 9. exd5 {[%emt 0:00:00]} cxd5 {[%emt 0:00:00]} 10. Bg5 {[%emt 0:00:00]} c6 {[%emt 0:00:00]} 11. h3 {[%emt 0:06:44]} Re8 {[%emt 0:00:00]} 12. Qd2 {[%emt 0:03:28]} h6 {[%emt 0:00:00]} 13. Bh4 {[%emt 0:04:08]} Rb8 {[%emt 0:08:07]} 14. a3 {[%emt 0:05:42]} Be7 {[%emt 0:09:48]} 15. b4 {[%emt 0:07:13]} Ne4 {[%emt 0:04:32]} 16. Bxe4 {[%emt 0:12:51]} Bf6 {[%emt 0:00:08]} 17. Bg5 Bxg5 {[%emt 0:00:30]} 18. Bd3 {[%emt 0:03:02]} Bf6 {[%emt 0:03:36]} 19. f4 {[%emt 0:05:44]} Qc7 {[%emt 0:02:12]} 20. Kh2 {[%emt 0:04:53]} Bd7 {[%emt 0:02:12]} 21. Rae1 {[%emt 0:05:54]} Bg5 {[%emt 0:05:48]} 22. Ne2 {[%emt 0:01:44]} Bf6 {[%emt 0:00:37]} 23. g3 {[%emt 0:08:36]} h5 {[%emt 0:03:07]} 24. Rf3 {[%emt 0:01:45]} Bf5 {[%emt 0:02:23]} 25. h4 Bg4 {[%emt 0:00:00]} 26. Rf2 {[%emt 0:01:10]} Qb6 {[%emt 0:00:00]} 27. Ref1 {[%emt 0:00:51]} Re3 {[%emt 0:01:20]} 28. Ng1 {[%emt 0:04:31]} Bd4 {[%emt 0:01:39]} 29. Nf3 {[%emt 0:00:52]} Rxd3 {[%emt 0:03:46]} 30. cxd3 {[%emt 0:00:05]} Bxf2 {[%emt 0:00:04]} 31. Rxf2 {[%emt 0:00:09]} Bxf3 {[%emt 0:00:14]} 32. Rxf3 {[%emt 0:00:16]} Re8 {[%emt 0:00:13]} 33. d4 {[%emt 0:01:38]} Re4 {[%emt 0:00:44]} 34. Rd3 {[%emt 0:00:14]} a6 {[%emt 0:00:24]} 35. Kg2 {[%emt 0:00:20]} f5 {[%emt 0:00:36]} 36. Kf2 {[%emt 0:00:41]} Qa7 {[%emt 0:01:18]} 37. Qc3 {[%emt 0:01:21]} Qe7 {[%emt 0:01:26]} 38. Re3 {[%emt 0:00:13]} Qe6 {[%emt 0:00:36]} 39. Rxe4 {[%emt 0:01:44]} dxe4 {[%emt 0:01:32]} 40. Qc2 {[%emt 0:02:34]} Qd5 {[%emt 0:01:00]} 41. Ke3 {[%emt 0:15:27]} Qb5 {[%emt 0:15:54]} 42. Qc3 {[%emt 0:01:04]} Qf1 {[%emt 0:00:59]} 43. Kd2 {[%emt 0:01:43]} Qf2+ {[%emt 0:00:47]} 44. Kc1 {[%emt 0:02:30]} e3 {[%emt 0:01:43]} 45. Qc4+ {[%emt 0:00:38]} Kh8 {[%emt 0:01:26]} 46. Qf7 {[%emt 0:00:52]} Qd2+ {[%emt 0:00:29]} 47. Kb1 {[%emt 0:00:07]} Qd1+ {[%emt 0:02:13]} 48. Ka2 {[%emt 0:01:17]} Qc2+ {[%emt 0:01:28]} 49. Ka1 {[%emt 0:00:12]} Qe4 {[%emt 0:00:35]} 50. Qxh5+ {[%emt 0:00:35]} Kg8 {[%emt 0:00:04]} 51. Qe2 {[%emt 0:00:12]} Qxd4+ {[%emt 0:00:50]} 52. Kb1 {[%emt 0:00:19]} Qe4+ {[%emt 0:02:52]} 53. Kb2 {[%emt 0:00:35]} Qd4+ {[%emt 0:01:12]} 54. Kc2 {[%emt 0:00:22]} Qe4+ {[%emt 0:01:08]} 55. Kb2 {[%emt 0:00:09]} Kf8 {[%emt 0:00:33]} 56. Kc3 {[%emt 0:01:09]} Ke7 {[%emt 0:01:51]} 57. Qd3 {[%emt 0:02:16]} Qe6 {[%emt 0:02:46]} 58. Kc2 {[%emt 0:00:00]} e2 {[%emt 0:00:00]} 59. Qc3 {[%emt 0:00:00]} e1=Q {[%emt 0:00:00]} 60. Qxg7+ {[%emt 0:00:00]} Qf7 {[%emt 0:00:00]} 61. Qg5+ {[%emt 0:00:00]} Ke8 {[%emt 0:00:00]} 62. Qh6 {[%emt 0:00:00]} Qa2+ {[%emt 0:00:00]} 63. Kd3 {[%emt 0:00:00]} Qe4+ {[%emt 0:00:04]} 64. Kc3 {[%emt 0:00:00]} Qac2# {[%emt 0:00:00]} 0-1

[Event "GER-ch Youth-U12 2024"]
[Site "Willingen"]
[Date "2024.05.24"]
[Round "8"]
[White "Andersen, Jonathan"]
[Black "Vinogradov, Ilia"]
[Result "1-0"]
[ECO "C45"]
[WhiteElo "1693"]
[BlackElo "1723"]
[Annotator "NA RC"]
[PlyCount "61"]
[EventDate "2022.06.05"]
[EventType "swiss"]
[EventRounds "9"]
[EventCountry "GER"]
[SourceTitle "playchess.com"]
[Source "ChessBase"]
[SourceQuality "1"]
[TimeControl "40/4500+30:900+30"]

1. e4 {[%emt 0:00:00]} e5 {[%emt 0:00:00]} 2. Nf3 {[%emt 0:00:00]} Nc6 {[%emt 0:00:00]} 3. d4 {[%emt 0:00:00]} exd4 {[%emt 0:00:00]} 4. Nxd4 {[%emt 0:00:00]} Bc5 {[%emt 0:00:00]} 5. Be3 {[%emt 0:00:00]} Qf6 {[%emt 0:00:00]} 6. c3 {[%emt 0:00:00]} Nge7 {[%emt 0:00:00]} 7. Qd2 {[%emt 0:00:00]} Qg6 {[%emt 0:00:00]} 8. Nb5 {[%emt 0:00:00]} Bxe3 {[%emt 0:06:36]} 9. Qxe3 {[%emt 0:00:00]} Kd8 {[%emt 0:02:33]} 10. Nd2 {[%emt 0:00:00]} a6 {[%emt 0:04:27]} 11. Nd4 {[%emt 0:00:00]} d6 {[%emt 0:08:42]} 12. O-O-O {[%emt 0:00:00]} Be6 {[%emt 0:07:13]} 13. Nc4 {[%emt 0:00:00]} Kd7 {[%emt 0:02:23]} 14. f4 {[%emt 0:04:22]} Bxc4 {[%emt 0:11:50]} 15. Bxc4 {[%emt 0:01:11]} Rad8 {[%emt 0:01:02]} 16. g4 {[%emt 0:13:48]} h6 {[%emt 0:02:29]} 17. h4 {[%emt 0:02:11]} Rhf8 {[%emt 0:04:02]} 18. h5 {[%emt 0:03:08]} Qh7 {[%emt 0:03:56]} 19. e5 {[%emt 0:04:37]} Kc8 {[%emt 0:08:30]} 20. Nxc6 {[%emt 0:02:16]} Nxc6 {[%emt 0:00:10]} 21. exd6 {[%emt 0:00:08]} cxd6 {[%emt 0:01:35]} 22. Bd3 {[%emt 0:01:13]} Qg8 {[%emt 0:01:03]} 23. Qb6 {[%emt 0:01:23]} Ne7 {[%emt 0:03:10]} 24. Bxa6 {[%emt 0:06:40]} bxa6 {[%emt 0:02:20]} 25. Qxa6+ {[%emt 0:02:18]} Kb8 {[%emt 0:01:58]} 26. Rxd6 {[%emt 0:00:14]} Nc8 {[%emt 0:02:26]} 27. Qb5+ {[%emt 0:00:09]} Ka8 {[%emt 0:01:54]} 28. Ra6+ {[%emt 0:00:30]} Na7 {[%emt 0:00:05]} 29. Qc6+ {[%emt 0:00:22]} Kb8 {[%emt 0:00:07]} 30. Qb6+ {[%emt 0:00:05]} Kc8 {[%emt 0:00:11]} 31. Rxa7 {[%emt 0:00:15]} 1-0

[Event "GER-ch Youth-U12 2024"]
[Site "Willingen"]
[Date "2024.05.24"]
[Round "8"]
[White "Vu Hoang Bach"]
[Black "Hellriegel, Hannes"]
[Result "1-0"]
[ECO "D02"]
[WhiteElo "1677"]
[BlackElo "1701"]
[Annotator "NA RC"]
[PlyCount "127"]
[EventDate "2022.06.05"]
[EventType "swiss"]
[EventRounds "9"]
[EventCountry "GER"]
[SourceTitle "playchess.com"]
[Source "ChessBase"]
[SourceQuality "1"]
[TimeControl "40/4500+30:900+30"]

1. d4 {[%emt 0:00:00]} Nf6 {[%emt 0:00:00]} 2. Bf4 {[%emt 0:00:00]} e6 {[%emt 0:00:00]} 3. e3 {[%emt 0:00:00]} c5 {[%emt 0:00:00]} 4. c3 {[%emt 0:00:00]} Nc6 {[%emt 0:00:00]} 5. Nf3 {[%emt 0:00:00]} d5 {[%emt 0:00:00]} 6. Nbd2 {[%emt 0:00:00]} Be7 {[%emt 0:00:00]} 7. Bd3 {[%emt 0:00:00]} c4 {[%emt 0:00:00]} 8. Bc2 {[%emt 0:00:00]} b5 {[%emt 0:00:00]} 9. Ne5 {[%emt 0:00:00]} Bb7 {[%emt 0:00:00]} 10. a3 {[%emt 0:00:00]} O-O {[%emt 0:06:15]} 11. h4 {[%emt 0:00:00]} a5 {[%emt 0:00:00]} 12. Ndf3 {[%emt 0:04:48]} b4 {[%emt 0:05:17]} 13. Bg5 {[%emt 0:03:08]} b3 {[%emt 0:02:53]} 14. Bb1 {[%emt 0:00:09]} Nd7 {[%emt 0:07:24]} 15. Nxd7 {[%emt 0:01:05]} Qxd7 {[%emt 0:00:18]} 16. Bxe7 {[%emt 0:26:54]} Qxe7 {[%emt 0:01:49]} 17. O-O {[%emt 0:16:09]} f5 {[%emt 0:09:57]} 18. g3 {[%emt 0:02:00]} Rf6 {[%emt 0:05:01]} 19. Kg2 {[%emt 0:02:21]} Raf8 {[%emt 0:04:02]} 20. Ng5 {[%emt 0:01:56]} Nd8 {[%emt 0:06:06]} 21. Nh3 {[%emt 0:02:22]} Nf7 {[%emt 0:08:02]} 22. f3 {[%emt 0:01:35]} Nd6 {[%emt 0:02:34]} 23. Rf2 {[%emt 0:00:59]} h6 {[%emt 0:04:11]} 24. h5 {[%emt 0:00:21]} Qc7 {[%emt 0:08:16]} 25. g4 {[%emt 0:01:50]} fxg4 {[%emt 0:03:58]} 26. fxg4 {[%emt 0:00:05]} Rxf2+ {[%emt 0:01:18]} 27. Nxf2 {[%emt 0:00:04]} Qf7 {[%emt 0:01:22]} 28. Qe2 {[%emt 0:00:12]} Qf6 {[%emt 0:03:00]} 29. Bg6 {[%emt 0:00:37]} Nf7 {[%emt 0:01:44]} 30. Bxf7+ {[%emt 0:01:17]} Rxf7 {[%emt 0:00:13]} 31. Rf1 {[%emt 0:00:27]} e5 {[%emt 0:01:26]} 32. Nh3 {[%emt 0:00:25]} Qxf1+ {[%emt 0:00:53]} 33. Qxf1 {[%emt 0:00:09]} Rxf1 {[%emt 0:00:04]} 34. Kxf1 {[%emt 0:00:01]} exd4 {[%emt 0:00:55]} 35. exd4 {[%emt 0:00:06]} Bc8 {[%emt 0:01:11]} 36. Nf2 {[%emt 0:00:04]} Kf7 {[%emt 0:01:01]} 37. Kg2 {[%emt 0:00:05]} Kf6 {[%emt 0:02:35]} 38. Kg3 {[%emt 0:00:05]} Kg5 {[%emt 0:00:48]} 39. Nh3+ {[%emt 0:00:03]} Kf6 {[%emt 0:00:10]} 40. Kf4 {[%emt 0:00:45]} Be6 {[%emt 0:01:26]} 41. g5+ {[%emt 0:15:31]} hxg5+ {[%emt 0:00:00]} 42. Nxg5 {[%emt 0:00:00]} Bf5 {[%emt 0:00:00]} 43. Nf7 {[%emt 0:00:00]} Bc2 {[%emt 0:02:04]} 44. Ne5 {[%emt 0:00:00]} Bf5 {[%emt 0:03:03]} 45. Ng4+ {[%emt 0:00:00]} Ke6 {[%emt 0:01:59]} 46. Ne3 {[%emt 0:00:00]} Be4 {[%emt 0:00:56]} 47. Kg5 {[%emt 0:00:00]} Bf3 {[%emt 0:01:39]} 48. Nf5 {[%emt 0:00:00]} Kf7 {[%emt 0:02:55]} 49. Nd6+ {[%emt 0:00:00]} Kg8 {[%emt 0:01:24]} 50. Nb7 {[%emt 0:00:00]} Kh7 {[%emt 0:01:00]} 51. Nxa5 {[%emt 0:00:00]} Be4 {[%emt 0:01:59]} 52. Nc6 {[%emt 0:00:00]} g6 {[%emt 0:01:39]} 53. h6 {[%emt 0:00:00]} Bd3 {[%emt 0:00:42]} 54. a4 {[%emt 0:00:00]} Bf5 {[%emt 0:00:17]} 55. a5 {[%emt 0:00:00]} Bc8 {[%emt 0:00:32]} 56. Ne7 {[%emt 0:00:00]} Bb7 {[%emt 0:00:27]} 57. Nxg6 {[%emt 0:00:00]} Kg8 {[%emt 0:00:24]} 58. Ne5 {[%emt 0:00:00]} Ba6 {[%emt 0:00:40]} 59. Kg6 {[%emt 0:00:00]} Bc8 {[%emt 0:00:27]} 60. h7+ {[%emt 0:00:00]} Kf8 {[%emt 0:00:14]} 61. h8=Q+ {[%emt 0:01:44]} Ke7 {[%emt 0:00:06]} 62. Qf6+ {[%emt 0:00:00]} Ke8 {[%emt 0:00:30]} 63. Qf7+ {[%emt 0:00:00]} Kd8 {[%emt 0:00:07]} 64. Nc6# {[%emt 0:00:00]} 1-0

[Event "GER-ch Youth-U12 2024"]
[Site "Willingen"]
[Date "2024.05.24"]
[Round "8"]
[White "Lee, Ho In"]
[Black "Rau, Eduard"]
[Result "0-1"]
[ECO "C56"]
[WhiteElo "1668"]
[BlackElo "1756"]
[Annotator "NA RC"]
[PlyCount "110"]
[EventDate "2022.06.05"]
[EventType "swiss"]
[EventRounds "9"]
[EventCountry "GER"]
[SourceTitle "playchess.com"]
[Source "ChessBase"]
[SourceQuality "1"]
[TimeControl "40/4500+30:900+30"]

1. e4 {[%emt 0:00:00]} e5 {[%emt 0:00:00]} 2. Nf3 {[%emt 0:00:00]} Nc6 {[%emt 0:00:00]} 3. Bc4 {[%emt 0:00:00]} Nf6 {[%emt 0:00:00]} 4. d4 {[%emt 0:00:00]} exd4 {[%emt 0:00:00]} 5. O-O {[%emt 0:00:00]} Nxe4 {[%emt 0:00:00]} 6. Re1 {[%emt 0:00:00]} d5 {[%emt 0:00:00]} 7. Bxd5 {[%emt 0:00:00]} Qxd5 {[%emt 0:00:00]} 8. Nc3 {[%emt 0:00:00]} Qh5 {[%emt 0:00:00]} 9. Nxe4 {[%emt 0:00:00]} Be6 {[%emt 0:00:00]} 10. Bg5 {[%emt 0:00:00]} Bd6 {[%emt 0:00:00]} 11. Nxd6+ {[%emt 0:00:00]} cxd6 {[%emt 0:00:00]} 12. Bf4 {[%emt 0:00:00]} Qd5 {[%emt 0:00:00]} 13. c3 {[%emt 0:00:00]} O-O {[%emt 0:01:31]} 14. Nxd4 {[%emt 0:00:00]} Nxd4 {[%emt 0:00:24]} 15. Qxd4 {[%emt 0:00:00]} Qxd4 {[%emt 0:00:35]} 16. cxd4 {[%emt 0:00:00]} Rac8 {[%emt 0:00:06]} 17. Re2 {[%emt 0:03:55]} Rc6 {[%emt 0:01:35]} 18. a3 {[%emt 0:12:29]} Rfc8 {[%emt 0:07:25]} 19. Rae1 {[%emt 0:02:17]} Kf8 {[%emt 0:00:43]} 20. f3 {[%emt 0:00:12]} Rb6 {[%emt 0:01:03]} 21. Kf2 {[%emt 0:08:47]} Bc4 {[%emt 0:04:07]} 22. Rc2 {[%emt 0:02:14]} d5 {[%emt 0:00:19]} 23. Bd2 {[%emt 0:00:39]} f6 {[%emt 0:14:54]} 24. Bb4+ {[%emt 0:14:23]} Kg8 {[%emt 0:00:28]} 25. Re7 {[%emt 0:01:43]} Ra8 {[%emt 0:00:40]} 26. Rc1 {[%emt 0:06:39]} a5 {[%emt 0:01:14]} 27. Bc3 {[%emt 0:00:06]} Rf8 {[%emt 0:00:27]} 28. Rce1 {[%emt 0:06:47]} Rf7 {[%emt 0:00:28]} 29. Kg3 {[%emt 0:02:20]} Ra6 {[%emt 0:00:39]} 30. Re8+ {[%emt 0:02:22]} Rf8 {[%emt 0:00:06]} 31. R1e7 {[%emt 0:01:10]} Rxe8 {[%emt 0:00:11]} 32. Rxe8+ {[%emt 0:00:04]} Kf7 {[%emt 0:00:03]} 33. Rb8 {[%emt 0:01:20]} b5 {[%emt 0:02:18]} 34. Rb7+ {[%emt 0:03:49]} Kg6 {[%emt 0:01:07]} 35. Re7 {[%emt 0:00:09]} h6 {[%emt 0:01:43]} 36. Kf4 {[%emt 0:01:18]} h5 {[%emt 0:00:47]} 37. h4 {[%emt 0:00:46]} Kh6 {[%emt 0:00:06]} 38. Bd2 {[%emt 0:04:08]} g5+ {[%emt 0:00:15]} 39. Kf5 {[%emt 0:00:19]} Bd3+ {[%emt 0:00:05]} 40. Re4 {[%emt 0:05:22]} dxe4 {[%emt 0:00:04]} 41. hxg5+ {[%emt 0:15:08]} fxg5 {[%emt 0:15:08]} 42. Bxg5+ {[%emt 0:00:07]} Kg7 {[%emt 0:00:02]} 43. fxe4 {[%emt 0:00:12]} Rg6 {[%emt 0:00:13]} 44. Bd2 {[%emt 0:00:25]} a4 {[%emt 0:00:10]} 45. Bc3 {[%emt 0:00:25]} Kf7 {[%emt 0:00:06]} 46. d5 {[%emt 0:00:10]} Rxg2 {[%emt 0:00:09]} 47. d6 {[%emt 0:00:04]} Rf2+ {[%emt 0:00:10]} 48. Kg5 {[%emt 0:00:12]} Bxe4 {[%emt 0:00:08]} 49. Bb4 {[%emt 0:00:36]} Rf5+ {[%emt 0:00:06]} 50. Kh4 {[%emt 0:00:06]} Ke6 {[%emt 0:00:03]} 51. Kg3 {[%emt 0:00:16]} Bf3 {[%emt 0:00:08]} 52. Kh4 {[%emt 0:00:07]} Bg4 {[%emt 0:00:05]} 53. Kg3 {[%emt 0:00:05]} Rf3+ {[%emt 0:00:04]} 54. Kh4 {[%emt 0:00:05]} Kf5 {[%emt 0:00:03]} 55. d7 {[%emt 0:00:17]} Rh3# {[%emt 0:00:03]} 0-1

[Event "GER-ch Youth-U12 2024"]
[Site "Willingen"]
[Date "2024.05.24"]
[Round "8"]
[White "Obermair, Hannes"]
[Black "Balashvili, Amiran"]
[Result "0-1"]
[ECO "D60"]
[WhiteElo "1668"]
[BlackElo "1682"]
[Annotator "NA RC"]
[PlyCount "62"]
[EventDate "2022.06.05"]
[EventType "swiss"]
[EventRounds "9"]
[EventCountry "GER"]
[SourceTitle "playchess.com"]
[Source "ChessBase"]
[SourceQuality "1"]
[TimeControl "40/4500+30:900+30"]

1. c4 {[%emt 0:00:00]} e6 {[%emt 0:00:00]} 2. Nc3 {[%emt 0:00:00]} d5 {[%emt 0:00:00]} 3. d4 {[%emt 0:00:00]} Be7 {[%emt 0:00:00]} 4. Nf3 {[%emt 0:00:00]} Nf6 {[%emt 0:00:00]} 5. Bg5 {[%emt 0:00:00]} Nbd7 {[%emt 0:00:00]} 6. e3 {[%emt 0:00:00]} O-O {[%emt 0:00:00]} 7. Bd3 {[%emt 0:00:00]} a6 {[%emt 0:00:00]} 8. O-O {[%emt 0:00:00]} h6 {[%emt 0:00:00]} 9. Bxf6 {[%emt 0:00:00]} Nxf6 {[%emt 0:00:00]} 10. Re1 {[%emt 0:00:00]} c5 {[%emt 0:00:00]} 11. cxd5 {[%emt 0:00:00]} exd5 {[%emt 0:00:00]} 12. dxc5 {[%emt 0:00:00]} Bxc5 {[%emt 0:00:00]} 13. Bc2 {[%emt 0:00:00]} Be6 {[%emt 0:00:00]} 14. Qd3 {[%emt 0:01:29]} Bb4 {[%emt 0:00:00]} 15. a3 {[%emt 0:03:29]} Bxc3 {[%emt 0:00:00]} 16. Qxc3 {[%emt 0:04:32]} Rc8 {[%emt 0:00:45]} 17. Qd3 {[%emt 0:00:59]} Qb6 {[%emt 0:04:40]} 18. Rab1 {[%emt 0:07:52]} Rc7 {[%emt 0:11:51]} 19. Nd4 {[%emt 0:09:18]} Rfc8 {[%emt 0:02:20]} 20. Bb3 {[%emt 0:02:52]} Ne4 {[%emt 0:06:16]} 21. Nf3 {[%emt 0:04:29]} Nc5 {[%emt 0:00:31]} 22. Qd4 {[%emt 0:09:38]} Qxb3 {[%emt 0:02:27]} 23. Nd2 {[%emt 0:01:25]} Qd3 {[%emt 0:01:55]} 24. Qb4 {[%emt 0:01:46]} Qf5 {[%emt 0:01:42]} 25. Qd4 {[%emt 0:01:49]} Qf6 {[%emt 0:02:59]} 26. Qxf6 {[%emt 0:01:21]} gxf6 {[%emt 0:00:04]} 27. Red1 {[%emt 0:02:20]} Na4 {[%emt 0:01:32]} 28. f3 {[%emt 0:02:10]} Rc2 {[%emt 0:01:14]} 29. Nb3 {[%emt 0:01:36]} Rxb2 {[%emt 0:01:54]} 30. Rxb2 {[%emt 0:00:31]} Nxb2 {[%emt 0:00:03]} 31. Nd4 {[%emt 0:00:08]} Nxd1 {[%emt 0:00:12]} 0-1

[Event "GER-ch Youth-U12 2024"]
[Site "Willingen"]
[Date "2024.05.24"]
[Round "8"]
[White "Prashanthakumar, Arnesh"]
[Black "Kaza, Charith"]
[Result "0-1"]
[ECO "B34"]
[WhiteElo "1634"]
[BlackElo "1503"]
[Annotator "NA RC"]
[PlyCount "65"]
[EventDate "2022.06.05"]
[EventType "swiss"]
[EventRounds "9"]
[EventCountry "GER"]
[SourceTitle "playchess.com"]
[Source "ChessBase"]
[SourceQuality "1"]
[TimeControl "40/4500+30:900+30"]

1. e4 {[%emt 0:00:00]} c5 {[%emt 0:00:00]} 2. Nf3 {[%emt 0:00:00]} Nc6 {[%emt 0:00:00]} 3. d4 {[%emt 0:00:00]} cxd4 {[%emt 0:00:00]} 4. Nxd4 {[%emt 0:00:00]} g6 {[%emt 0:00:00]} 5. Nc3 {[%emt 0:00:00]} Bg7 {[%emt 0:00:00]} 6. Be3 {[%emt 0:00:00]} Nf6 {[%emt 0:00:00]} 7. f3 {[%emt 0:00:00]} Qa5 {[%emt 0:00:00]} 8. Qd2 {[%emt 0:00:00]} O-O {[%emt 0:00:00]} 9. Nb3 {[%emt 0:00:00]} Qd8 {[%emt 0:03:44]} 10. O-O-O {[%emt 0:00:00]} d6 {[%emt 0:00:40]} 11. Bh6 {[%emt 0:00:00]} Be6 {[%emt 0:04:57]} 12. h4 {[%emt 0:00:00]} Bxb3 {[%emt 0:02:40]} 13. axb3 {[%emt 0:00:00]} Qa5 {[%emt 0:00:12]} 14. Kb1 {[%emt 0:00:42]} Bxh6 {[%emt 0:02:29]} 15. Qxh6 {[%emt 0:01:00]} Qh5 {[%emt 0:00:56]} 16. Qe3 {[%emt 0:04:11]} Qc5 {[%emt 0:08:47]} 17. Qd2 {[%emt 0:02:23]} Kg7 {[%emt 0:01:54]} 18. g4 {[%emt 0:05:23]} h5 {[%emt 0:04:02]} 19. gxh5 {[%emt 0:01:26]} Nxh5 {[%emt 0:02:57]} 20. Be2 {[%emt 0:05:26]} Ng3 {[%emt 0:00:41]} 21. Rhg1 {[%emt 0:03:31]} Nxe2 {[%emt 0:00:17]} 22. Qxe2 {[%emt 0:02:03]} Rh8 {[%emt 0:04:42]} 23. Rg4 {[%emt 0:03:23]} Rh5 {[%emt 0:02:46]} 24. Rd5 {[%emt 0:04:46]} Rxd5 {[%emt 0:03:10]} 25. exd5 {[%emt 0:01:05]} Ne5 {[%emt 0:06:19]} 26. Rg2 {[%emt 0:01:48]} Rh8 {[%emt 0:07:12]} 27. f4 {[%emt 0:04:26]} Rxh4 {[%emt 0:02:03]} 28. Qd2 {[%emt 0:06:57]} Rh1+ {[%emt 0:06:23]} 29. Nd1 {[%emt 0:00:22]} Nf3 {[%emt 0:03:42]} 30. Qe2 {[%emt 0:03:19]} Qxd5 {[%emt 0:00:35]} 31. Kc1 {[%emt 0:00:10]} Nd4 {[%emt 0:01:25]} 32. Qd2 {[%emt 0:01:34]} Qc5 {[%emt 0:01:06]} 33. b4 {[%emt 0:01:10]} 0-1

[Event "GER-ch Youth-U12 2024"]
[Site "Willingen"]
[Date "2024.05.24"]
[Round "8"]
[White "Heins, Simon"]
[Black "Heitmann, Erik"]
[Result "1-0"]
[ECO "B01"]
[WhiteElo "1626"]
[BlackElo "1644"]
[Annotator "NA RC"]
[PlyCount "73"]
[EventDate "2022.06.05"]
[EventType "swiss"]
[EventRounds "9"]
[EventCountry "GER"]
[SourceTitle "playchess.com"]
[Source "ChessBase"]
[SourceQuality "1"]
[TimeControl "40/4500+30:900+30"]

1. e4 {[%emt 0:00:00]} d5 {[%emt 0:00:00]} 2. exd5 {[%emt 0:00:00]} Qxd5 {[%emt 0:00:00]} 3. Nc3 {[%emt 0:00:00]} Qa5 {[%emt 0:00:00]} 4. Bc4 {[%emt 0:00:00]} c6 {[%emt 0:00:00]} 5. d3 {[%emt 0:00:00]} Bf5 {[%emt 0:00:00]} 6. Bd2 {[%emt 0:00:00]} e6 {[%emt 0:00:00]} 7. Qe2 {[%emt 0:00:00]} Bb4 {[%emt 0:00:00]} 8. a3 {[%emt 0:00:00]} Nf6 {[%emt 0:00:00]} 9. h3 {[%emt 0:00:00]} Nbd7 {[%emt 0:00:00]} 10. Nf3 {[%emt 0:00:00]} Bxc3 {[%emt 0:00:00]} 11. Bxc3 {[%emt 0:00:00]} Qc7 {[%emt 0:00:00]} 12. O-O {[%emt 0:00:00]} O-O {[%emt 0:00:09]} 13. Rfe1 {[%emt 0:00:54]} Nb6 {[%emt 0:01:59]} 14. Ba2 {[%emt 0:03:32]} Qe7 {[%emt 0:05:33]} 15. Nh4 {[%emt 0:03:43]} Bg6 {[%emt 0:01:12]} 16. Nxg6 {[%emt 0:01:47]} hxg6 {[%emt 0:00:03]} 17. d4 {[%emt 0:01:22]} Nbd5 {[%emt 0:00:37]} 18. Bd2 {[%emt 0:00:14]} Qd7 {[%emt 0:01:01]} 19. c4 {[%emt 0:00:59]} Ne7 {[%emt 0:00:20]} 20. Rad1 {[%emt 0:00:55]} Rfd8 {[%emt 0:00:21]} 21. Bc3 {[%emt 0:02:27]} Nf5 {[%emt 0:03:12]} 22. Qf3 {[%emt 0:05:55]} Re8 {[%emt 0:09:39]} 23. d5 {[%emt 0:06:34]} exd5 {[%emt 0:01:21]} 24. Rxe8+ {[%emt 0:01:12]} Rxe8 {[%emt 0:00:09]} 25. Bxf6 {[%emt 0:00:21]} gxf6 {[%emt 0:00:08]} 26. cxd5 {[%emt 0:00:09]} cxd5 {[%emt 0:00:58]} 27. Bxd5 {[%emt 0:00:11]} Qb5 {[%emt 0:01:48]} 28. b4 {[%emt 0:02:13]} Re7 {[%emt 0:03:10]} 29. g4 {[%emt 0:01:14]} Nd6 {[%emt 0:08:59]} 30. Qxf6 {[%emt 0:00:43]} Qe2 {[%emt 0:00:08]} 31. Qxg6+ {[%emt 0:00:10]} Kf8 {[%emt 0:00:20]} 32. Qd3 {[%emt 0:02:01]} b6 {[%emt 0:01:10]} 33. Qd4 {[%emt 0:01:54]} Re5 {[%emt 0:01:03]} 34. Bf3 {[%emt 0:26:13]} Qxf3 {[%emt 0:01:59]} 35. Qxd6+ {[%emt 0:00:05]} Re7 36. Qh6+ Kg8 37. Rd8+ {[%emt 0:01:00]} 1-0